bitfinex/quotes_ETHUSD_20260203
["timestamp","ask_amount","ask_price","bid_price","bid_amount"]
[1770133174295,1.08910409,2297.8,2295.8,0.02604958]
[1770133174512,0.0011,2297.8,2296.6,1.0885657]
[1770133174697,0.9141,2297.8,2296.7,0.54688781]
[1770133175110,0.9141,2297.8,2296.5,1.11462702]
[1770133175493,0.0011,2297.8,2297.1,0.02604958]
[1770133175690,0.0011,2298.0,2297.1,0.02604958]
[1770133175993,0.0011,2298.0,2296.3,0.02604958]
[1770133175994,0.913,2297.9,2296.3,0.02604958]
[1770133176205,0.913,2297.9,2296.7,0.02604958]
[1770133176414,1.08799721,2297.8,2296.9,1.08842352]
[1770133176604,1.08799721,2297.8,2297.0,0.54681672]
[1770133176914,1.08799721,2297.8,2296.8,1.08846246]
[1770133177115,1.08799721,2297.8,2296.7,1.08849546]
[1770133177618,1.08799721,2297.8,2296.8,1.08846861]
[1770133177813,1.08799721,2297.8,2296.6,1.08853032]
[1770133178020,1.08799721,2297.8,2296.2,0.02604958]
[1770133178226,12.99853631,2297.8,2296.1,0.02604958]
[1770133178387,1.08809192,2297.6,2296.0,1.08885017]
[1770133179122,1.08809192,2297.6,2296.0,1.11489975]
[1770133180194,2.2456284,2297.6,2296.0,1.11489975]
[1770133180420,2.2456284,2297.6,2296.2,1.08875533]
[1770133180939,1.08809192,2297.6,2296.6,0.02604958]
[1770133181794,1.08809192,2297.6,2296.5,0.02604958]
[1770133182198,1.08919192,2297.6,2296.5,0.02604958]
[1770133182744,0.0011,2297.6,2296.4,1.0886376]
[1770133182927,11.9116391,2297.6,2296.2,1.08973176]
[1770133183232,11.9116391,2297.6,2296.0,0.02704958]
[1770133183233,1.15753648,2297.0,2296.0,0.001]
[1770133183565,0.1024,2296.8,2295.4,0.54719608]
[1770133183697,1.15753648,2296.2,2295.0,0.001]
[1770133183895,1.15753648,2296.4,2295.0,1.09032395]
[1770133184123,0.913,2296.1,2295.0,0.001]
[1770133184645,1.08885017,2296.0,2295.0,0.001]
[1770133184807,1.0888355,2296.1,2295.0,0.001]
[1770133185625,14.18296066,2296.1,2295.0,0.001]
[1770133185925,13.06807558,2296.0,2295.0,0.001]
[1770133186144,1.15753648,2295.9,2295.0,0.001]
[1770133186438,13.09412516,2296.0,2295.0,0.001]
[1770133186639,1.08894503,2295.8,2295.0,0.001]
[1770133188118,0.913,2295.7,2295.0,0.001]
[1770133188319,13.19652516,2295.6,2294.5,0.001]
[1770133188527,13.06807558,2295.5,2294.5,0.001]
[1770133188839,1.08913479,2295.4,2294.5,0.001]
[1770133189213,4.35653916,2295.6,2294.5,0.001]
[1770133189214,0.913,2295.6,2294.5,0.001]
[1770133189823,5.26841452,2296.0,2294.7,0.02604958]
[1770133190066,17.81816499,2296.5,2295.0,0.02604958]
[1770133190067,1.15753648,2296.5,2295.0,0.02604958]
[1770133190212,1.08866051,2296.4,2295.2,0.02604958]
[1770133190726,1.08866051,2296.4,2295.3,1.08918224]
[1770133191269,1.08866051,2296.4,2295.2,1.08919707]
[1770133191555,12.74926229,2296.1,2294.5,0.001]
[1770133191710,12.74926229,2295.9,2294.5,0.001]
[1770133191917,0.913,2295.8,2294.5,1.09055356]
[1770133192110,0.913,2295.8,2294.6,1.08948348]
[1770133192738,0.913,2295.8,2294.6,1.08947955]
[1770133192945,1.08899246,2295.7,2294.5,0.001]
[1770133194237,1.08899246,2295.7,2294.7,0.02604958]
[1770133194536,1.08875533,2296.2,2294.8,0.02604958]
[1770133194841,1.08875533,2296.2,2294.9,0.02604958]
[1770133195024,1.08875533,2296.2,2295.0,1.08932461]
[1770133195214,1.08875533,2296.2,2294.9,1.08935958]
[1770133195736,1.15753648,2296.5,2294.9,1.08935958]
[1770133195737,4.35452379,2296.5,2295.1,0.02604958]
[1770133195936,0.913,2296.4,2295.1,0.02604958]
[1770133196742,0.913,2296.4,2295.2,0.02604958]
[1770133197041,4.35332903,2297.1,2295.7,1.08899246]
[1770133197211,0.913,2297.0,2295.8,0.54710119]
[1770133197612,1.0881627,2297.5,2296.3,0.02604958]
[1770133197838,1.0881627,2297.5,2296.4,0.02604958]
[1770133198447,1.0881627,2297.5,2296.1,0.02604958]
[1770133198948,13.01705712,2297.5,2296.0,0.913]
[1770133199145,13.01705712,2297.5,2296.1,1.08880275]
[1770133199723,13.01705712,2297.5,2296.0,0.913]
[1770133200043,13.01705712,2297.5,2296.0,1.08884951]
[1770133200223,11.92889442,2297.3,2295.7,0.02604958]
[1770133200420,2.32880622,2298.6,2297.0,4.187352]
[1770133200743,11.92889442,2300.2,2298.2,0.02604958]
[1770133200942,11.92889442,2300.2,2297.8,0.02604958]
[1770133200943,11.954944,2299.4,2297.6,0.02604958]
[1770133201127,13.01618185,2299.3,2298.1,1.12312705]
[1770133201313,13.01618185,2299.3,2297.6,4.35217826]
[1770133201314,11.94629707,2299.0,2297.6,2.21120086]
[1770133201537,11.92889442,2299.0,2297.7,0.90645624]
[1770133201718,12.84189442,2299.0,2297.6,1.08807178]
[1770133201913,12.84189442,2299.0,2297.7,0.90586248]
[1770133202120,12.84189442,2299.0,2297.3,1.12312705]
[1770133202337,12.84189442,2299.0,2297.2,0.913]
[1770133202338,11.92889442,2298.8,2297.2,0.913]
[1770133202545,11.92889442,2298.8,2297.6,1.08809015]
[1770133202746,11.92889442,2298.8,2297.4,1.10555186]
[1770133203043,11.92889442,2298.8,2297.5,1.08812801]
[1770133203253,1.08757123,2298.7,2297.4,1.10557321]
[1770133203448,13.01646565,2298.7,2297.2,0.93040265]
[1770133203626,13.01646565,2298.7,2296.7,1.08848848]
[1770133203627,11.92889442,2298.3,2296.7,1.08848848]
[1770133203954,0.1024,2298.5,2296.1,1.1405297]
[1770133203955,12.94429442,2298.2,2296.1,1.1405297]
[1770133204158,11.92889442,2298.1,2296.5,1.08856669]
[1770133204453,0.1024,2297.9,2296.6,1.08856306]
[1770133204768,11.92889442,2298.1,2296.8,1.08844946]
[1770133204917,11.92889442,2298.1,2296.5,0.01740265]
[1770133205118,11.92889442,2298.1,2296.8,1.10587356]
[1770133205119,13.01678022,2298.1,2296.8,1.10587356]
[1770133205422,11.92889442,2297.9,2296.1,1.12312705]
[1770133205625,11.92889442,2297.7,2296.0,4.35532935]
[1770133205817,12.84189442,2297.6,2295.8,4.37314409]
[1770133206022,12.84189442,2297.6,2296.3,1.08867614]
[1770133206218,12.84189442,2297.6,2296.2,1.10612605]
[1770133206473,11.92889442,2297.5,2296.3,0.54787026]
[1770133206760,11.92889442,2297.5,2296.1,1.08876745]
[1770133206921,11.92889442,2297.5,2296.2,1.08875168]
[1770133207123,1.08818664,2297.4,2295.9,4.35545343]
[1770133207355,13.01708106,2297.4,2295.8,1.10634218]
[1770133207526,13.01708106,2297.4,2295.7,1.08896703]
[1770133207846,11.92889442,2297.2,2295.8,1.99378634]
[1770133208050,11.92889442,2297.2,2295.8,1.08893936]
[1770133208248,12.03129442,2297.1,2295.5,1.10646503]
[1770133208552,11.92889442,2296.9,2295.2,4.37530446]
[1770133208752,0.913,2297.0,2295.8,1.08892981]
[1770133209078,0.913,2297.0,2295.9,0.54447696]
[1770133209079,12.84189442,2297.0,2295.9,0.54447696]
[1770133209253,12.84189442,2297.0,2295.6,1.08899673]
[1770133209254,11.92889442,2296.8,2295.6,1.08899673]
[1770133209458,11.92889442,2296.8,2295.6,1.0890346]
[1770133209965,11.92889442,2296.8,2295.7,1.08899162]
[1770133210257,1.08842352,2296.9,2295.9,1.08886998]
[1770133210560,1.08842352,2296.9,2295.9,1.1062919]
[1770133210857,16.2819795,2297.3,2295.9,1.1062919]
[1770133210858,1.08828138,2297.2,2296.1,0.01740265]
[1770133211056,1.08828138,2297.2,2296.2,0.01740265]
[1770133211221,4.35312554,2297.3,2296.1,1.08877669]
[1770133211425,4.35312554,2297.4,2296.2,0.54441377]
[1770133211648,0.29756706,2297.5,2296.2,0.56181642]
[1770133211964,0.0011,2298.1,2297.6,0.01740265]
[1770133212328,0.0011,2298.1,2296.2,1.68494347]
[1770133212329,13.9308517,2298.1,2296.2,1.68494347]
[1770133212561,13.9308517,2298.1,2296.6,0.90263054]
[1770133212752,13.94825435,2298.1,2296.2,0.54441377]
[1770133213052,13.94825435,2298.1,2296.2,2.58843471]
[1770133213250,13.94825435,2298.1,2296.3,1.99219916]
[1770133213457,13.94825435,2298.1,2296.4,0.90349124]
[1770133213637,13.9308517,2298.1,2296.3,1.08870792]
[1770133213837,13.9308517,2298.1,2296.4,0.90290274]
[1770133214029,13.9308517,2298.1,2296.5,0.92030539]
[1770133214225,13.9308517,2298.1,2296.6,0.90290274]
[1770133214433,13.9308517,2298.1,2296.4,0.01740265]
[1770133214734,11.92889442,2298.0,2296.4,0.73373149]
[1770133214931,11.94629707,2297.9,2296.4,0.71632884]
[1770133215138,1.08828138,2297.2,2296.0,1.08882694]
[1770133215349,1.08828138,2297.2,2295.3,1.52388193]
[1770133215350,12.84189442,2297.1,2295.3,1.1405297]
[1770133215634,11.92889442,2296.9,2295.6,1.08903517]
[1770133215829,0.913,2297.1,2295.3,0.01740265]
[1770133216036,0.913,2297.1,2295.4,0.92156365]
[1770133216231,12.84189442,2297.1,2295.8,1.08892251]
[1770133216462,12.84189442,2297.1,2295.6,4.35608565]
[1770133216641,12.84189442,2297.1,2295.9,1.08886945]
[1770133216836,11.92889442,2297.1,2295.5,0.01740265]
[1770133217055,0.913,2297.1,2296.0,1.08882105]
[1770133217258,1.08837614,2297.0,2295.7,1.08899246]
[1770133218034,1.08837614,2297.0,2295.5,4.92688622]
[1770133218035,11.92889442,2296.7,2295.5,0.55318732]
[1770133218265,11.94629707,2296.5,2295.2,0.001]
[1770133218474,11.92889442,2296.3,2295.2,0.001]
[1770133218938,11.92889442,2296.3,2295.2,1.09022744]
[1770133219130,11.92889442,2296.3,2295.2,0.001]
[1770133219345,13.01764975,2296.2,2295.2,0.001]
[1770133220181,13.01764975,2296.2,2295.0,0.001]
[1770133220388,11.94629707,2295.9,2295.0,0.001]
[1770133220604,0.913,2295.8,2295.0,0.001]
[1770133220765,12.25987383,2295.6,2294.6,0.001]
[1770133221489,1.08908734,2295.5,2294.6,0.001]
[1770133222195,12.25987383,2295.1,2294.0,0.001]
[1770133222370,12.25987383,2294.6,2293.7,0.001]
[1770133222574,0.913,2294.5,2293.7,0.001]
[1770133222782,0.01740265,2295.0,2293.7,0.001]
[1770133223080,0.913,2294.9,2294.0,1.08979278]
[1770133223279,13.17287383,2295.1,2293.9,1.10722027]
[1770133223481,13.34919844,2295.0,2293.7,1.09093773]
[1770133223892,13.34919844,2295.0,2293.8,0.54681084]
[1770133224491,1.08932461,2295.0,2293.8,0.56421349]
[1770133224696,1.08913479,2295.4,2294.2,0.01740265]
[1770133225260,13.34900862,2295.4,2294.0,0.01740265]
[1770133225481,13.34900862,2295.4,2293.9,1.08984698]
[1770133225686,13.34900862,2295.4,2294.0,0.01740265]
[1770133226161,13.34900862,2295.4,2294.1,0.01740265]
[1770133226360,1.08913479,2295.4,2294.3,0.01740265]
[1770133227092,2.00204398,2295.6,2294.4,0.01740265]
[1770133227280,2.00204398,2295.6,2294.7,0.01740265]
[1770133227481,2.00204398,2295.6,2294.6,1.10690964]
[1770133227994,2.00204398,2295.6,2294.7,0.54823703]
[1770133228372,2.00204398,2295.6,2294.6,1.08950774]
[1770133228572,4.355211,2296.3,2295.1,0.01740265]
[1770133228908,0.913,2296.2,2295.1,0.01740265]
[1770133229072,0.913,2296.2,2294.8,0.01740265]
[1770133229258,13.17287383,2296.2,2294.8,0.01740265]
[1770133229464,13.17287383,2296.2,2294.9,0.01740265]
[1770133229686,1.08880275,2296.1,2294.9,0.01740265]
[1770133229894,1.08880275,2296.1,2294.9,1.1329394]
[1770133230097,13.34867658,2296.1,2294.6,0.05304284]
[1770133230396,12.36227383,2296.0,2294.6,1.08948878]
[1770133230581,1.08880275,2296.1,2294.8,1.08938828]
[1770133230784,13.34867658,2296.1,2294.5,1.0895229]
[1770133231082,13.34867658,2296.1,2294.8,1.08938972]
[1770133231279,13.34867658,2296.1,2294.7,1.08943792]
[1770133231477,13.34867658,2296.1,2294.9,1.08934863]
[1770133231698,13.34867658,2296.1,2295.0,0.54469428]
[1770133231991,1.08880275,2296.1,2294.7,0.01740265]
[1770133232204,2.00180275,2296.1,2294.8,0.01740265]
[1770133232495,2.00180275,2296.1,2294.4,1.08959766]
[1770133232496,12.25987383,2296.0,2294.4,1.08959766]
[1770133232689,12.25987383,2296.0,2294.3,1.08962241]
[1770133232887,12.25987383,2296.0,2294.4,1.08957698]
[1770133233084,12.25987383,2295.8,2294.5,1.63437746]
[1770133233405,12.25987383,2295.8,2294.5,1.63435201]
[1770133233696,1.08899246,2295.7,2294.7,0.01740265]
[1770133234264,1.08896795,2295.8,2294.8,0.01740265]
[1770133234891,1.08896795,2295.8,2294.6,1.08949313]
[1770133235094,1.08896795,2295.8,2294.7,0.59925296]
[1770133235298,13.34884178,2295.8,2294.5,0.54481882]
[1770133235501,13.34884178,2295.8,2294.4,1.08958651]
[1770133235695,13.34884178,2295.8,2294.2,1.09070447]
[1770133236167,13.34884178,2295.8,2294.2,0.001]
[1770133236470,12.25987383,2295.6,2294.2,0.001]
[1770133236867,0.913,2295.5,2294.2,0.001]
[1770133237104,12.25987383,2295.4,2294.2,0.001]
[1770133237602,1.08918224,2295.3,2294.2,0.001]
[1770133238817,4.35582079,2295.8,2294.5,0.01740265]
[1770133238967,4.35582079,2295.8,2294.6,0.01740265]
[1770133239169,1.0900291,2295.9,2294.8,0.01740265]
[1770133239671,12.26097383,2295.9,2294.6,1.08948155]
[1770133239872,12.26097383,2295.9,2294.7,0.54475885]
[1770133241092,0.0011,2295.9,2294.7,0.54475885]
[1770133241674,1.0899976,2295.9,2294.7,1.6342028]
[1770133241870,13.34987143,2295.9,2294.7,0.54475885]
[1770133242071,13.34987143,2295.9,2294.7,1.63422047]
[1770133242314,0.0011,2295.9,2294.8,0.59922718]
[1770133242509,0.0011,2295.9,2294.8,1.50649221]
[1770133242801,0.0011,2296.1,2295.2,0.01740265]
[1770133243005,12.25987383,2296.9,2295.6,0.01740265]
[1770133243214,0.0011,2297.1,2296.0,0.01740265]
[1770133243398,0.0011,2297.1,2296.1,0.90726503]
[1770133243399,1.089429,2297.1,2296.1,0.90726503]
[1770133243579,0.0011,2297.1,2295.9,1.0888976]
[1770133243780,0.0011,2297.1,2296.1,0.01740265]
[1770133244006,1.08799721,2297.8,2296.5,0.01740265]
[1770133244208,13.34787104,2297.8,2296.2,1.13323212]
[1770133244414,13.36527369,2297.8,2296.3,0.90609957]
[1770133244579,12.25987383,2297.7,2296.0,1.81014705]
[1770133244780,12.25987383,2297.7,2296.1,2.03859652]
[1770133244980,12.25987383,2297.7,2296.2,0.9053644]
[1770133245311,12.25987383,2297.7,2296.3,0.9053644]
[1770133245484,12.25987383,2297.5,2296.0,0.65951228]
[1770133245682,1.08823401,2297.3,2296.2,1.08875533]
[1770133245987,12.25987383,2297.0,2295.5,1.13323212]
[1770133246309,0.01740265,2296.9,2295.2,1.13323212]
[1770133246508,0.0011,2295.9,2295.3,1.99590693]
[1770133246805,0.0011,2295.9,2295.4,0.63528257]
[1770133247006,0.0011,2296.1,2295.4,0.63528257]
[1770133247817,0.0011,2296.1,2295.4,1.72437124]
[1770133247995,0.0011,2296.1,2295.4,1.08913395]
[1770133249518,0.0011,2296.1,2295.1,0.913]
[1770133249820,0.0011,2296.1,2295.2,0.90746597]
[1770133250010,12.26097383,2296.1,2294.9,1.08934745]
[1770133250186,12.26097383,2296.1,2294.8,1.08939235]
[1770133250505,12.62798718,2295.9,2294.3,0.913]
[1770133250705,12.62798718,2295.5,2294.2,0.001]
[1770133250904,12.61058453,2295.5,2294.2,1.09069758]
[1770133251104,12.61058453,2295.5,2294.2,0.001]
[1770133251493,12.62798718,2295.3,2294.2,0.001]
[1770133251810,12.62798718,2295.3,2293.7,2.04723212]
[1770133251811,12.61058453,2295.0,2293.7,0.001]
[1770133252016,12.61058453,2294.6,2293.7,0.001]
[1770133252185,0.37791949,2294.6,2293.7,0.001]
[1770133252390,0.37791949,2294.6,2293.7,1.09093238]
[1770133252586,0.37791949,2294.6,2293.8,0.90894284]
[1770133252901,0.37791949,2294.6,2293.7,1.10833503]
[1770133253104,0.37791949,2294.6,2293.8,1.45761176]
[1770133253304,0.37791949,2294.6,2293.8,0.54855057]
[1770133253500,0.37791949,2294.6,2293.7,1.0909351]
[1770133254007,0.37791949,2294.6,2293.7,0.001]
[1770133254008,1.08956199,2294.5,2293.7,0.001]
[1770133254208,0.78515003,2294.5,2293.8,0.90916381]
[1770133254388,1.71757506,2294.8,2293.7,0.01840265]
[1770133254590,1.71757506,2294.8,2293.8,0.90916662]
[1770133254929,1.08930918,2295.1,2294.0,0.01740265]
[1770133255139,1.08930918,2295.1,2294.1,0.90850537]
[1770133255431,0.50249602,2295.0,2294.0,0.01740265]
[1770133255590,0.50249602,2295.0,2294.1,0.90875334]
[1770133255792,0.50249602,2295.0,2294.0,0.01740265]
[1770133255988,1.08937208,2294.9,2294.2,1.08970447]
[1770133256229,1.08937208,2294.9,2294.0,1.08976524]
[1770133256401,1.46509844,2294.9,2294.0,1.08976524]
[1770133257231,14.07922925,2294.9,2293.7,0.001]
[1770133257395,14.07922925,2294.9,2293.8,1.08989438]
[1770133257598,14.07922925,2294.9,2293.8,1.08985862]
[1770133257799,14.07922925,2294.9,2293.7,1.09090567]
[1770133258013,14.07922925,2294.9,2293.8,0.63638477]
[1770133258202,14.07922925,2294.9,2293.7,1.09091639]
[1770133258718,14.07922925,2294.9,2293.9,0.001]
[1770133258919,4.35748834,2295.1,2294.0,0.90825393]
[1770133258920,0.30058109,2295.1,2294.0,0.90825393]
[1770133259217,12.9147119,2295.1,2293.9,0.001]
[1770133260012,12.61413081,2294.9,2293.9,0.001]
[1770133260818,12.61413081,2294.9,2293.8,0.0842304]
[1770133261024,12.61413081,2294.9,2293.7,0.001]
[1770133261436,12.61413081,2294.9,2293.8,1.08989443]
[1770133261660,12.61413081,2294.9,2293.7,0.001]
[1770133261936,4.65787956,2295.1,2293.7,0.001]
[1770133261937,1.08946703,2294.7,2293.7,0.001]
[1770133262611,13.70359784,2294.7,2293.7,0.001]
[1770133264026,12.61413081,2294.0,2293.3,0.001]
[1770133264329,1.08975197,2294.1,2293.4,0.01740265]
[1770133265027,16.97239193,2294.5,2293.5,0.01740265]
[1770133265028,4.35857629,2294.4,2293.5,0.01740265]
[1770133265230,1.08960948,2294.4,2293.6,0.01740265]
[1770133265637,13.70374029,2294.4,2293.3,0.001]
[1770133266543,13.70374029,2294.4,2293.0,0.001]
[1770133266911,12.61413081,2294.2,2293.0,0.001]
[1770133267640,0.1024,2294.3,2293.0,0.001]
[1770133267641,0.1024,2294.1,2293.0,0.001]
[1770133267838,0.1024,2294.3,2293.0,0.001]
[1770133267839,12.61413081,2294.0,2293.0,0.001]
[1770133268023,12.61413081,2293.8,2293.0,0.001]
[1770133268208,1.08994201,2293.7,2293.0,0.001]
[1770133268950,1.08992769,2293.8,2293.0,0.001]
[1770133269201,2.00375197,2294.1,2293.0,0.001]
[1770133269444,14.61788278,2294.1,2293.0,0.001]
[1770133271534,14.61788278,2294.1,2293.2,0.001]
[1770133271845,12.61413081,2293.9,2292.7,0.001]
[1770133272542,12.61413081,2293.7,2292.7,0.001]
[1770133272844,12.61413081,2293.4,2292.4,0.001]
[1770133273218,12.61413081,2293.4,2292.2,0.001]
[1770133274263,12.61413081,2293.7,2292.2,0.001]
[1770133274444,1.08998953,2293.6,2292.3,1.10801033]
[1770133274765,1.08998953,2293.6,2292.2,1.09165008]
[1770133274766,14.61812034,2293.6,2292.2,1.09165008]
[1770133275056,14.61812034,2293.6,2292.3,0.54554416]
[1770133275422,2.00398953,2293.6,2292.4,0.01740265]
[1770133275627,2.00398953,2293.6,2292.5,0.01740265]
[1770133276655,2.00398953,2293.6,2292.6,1.10786762]
[1770133277035,2.00398953,2293.6,2292.5,1.10790307]
[1770133277237,2.00398953,2293.6,2292.6,0.54874726]
[1770133277650,14.61812034,2293.6,2292.6,0.54874726]
[1770133277970,14.61812034,2293.6,2292.3,1.0905921]
[1770133278283,14.61812034,2293.6,2292.2,0.001]
[1770133278566,12.61413081,2293.5,2292.2,0.001]
[1770133278774,12.61413081,2293.3,2292.2,0.001]
[1770133279342,12.61413081,2293.1,2292.1,0.001]
[1770133279542,12.61413081,2292.9,2292.1,0.001]
[1770133280238,13.7042154,2293.4,2292.1,0.001]
[1770133280467,0.914,2293.3,2292.1,0.001]
[1770133280849,1.09017966,2293.2,2292.1,0.001]
[1770133281473,1.09017966,2293.2,2292.2,0.01740265]
[1770133281641,2.00415372,2293.3,2292.5,0.01740265]
[1770133282058,1.09012229,2293.4,2292.6,0.01740265]
[1770133282278,1.09012229,2293.4,2292.4,0.01740265]
[1770133283004,4.35977397,2293.7,2292.5,1.10791519]
[1770133283189,4.35976806,2294.0,2292.9,0.01740265]
[1770133283190,1.08979947,2294.0,2292.9,0.01740265]
[1770133283676,1.08979947,2294.0,2293.1,0.01740265]
[1770133283973,13.74444522,2294.0,2292.2,4.61302311]
[1770133284159,1.08979947,2294.0,2292.8,0.01740265]
[1770133284695,13.74444522,2294.0,2292.6,0.5487368]
[1770133284871,13.74444522,2294.0,2292.4,1.0905369]
[1770133284872,13.74444522,2294.0,2292.3,1.09156185]
[1770133285075,13.74444522,2294.0,2292.4,0.91043474]
[1770133285273,13.74444522,2294.0,2292.5,0.91043474]
[1770133285577,0.914,2293.9,2292.7,0.01740265]
[1770133285973,0.914,2293.9,2292.6,0.01740265]
[1770133286177,13.56864575,2293.9,2292.7,0.91132961]
[1770133286368,13.56864575,2293.9,2292.5,0.01740265]
[1770133286569,13.56864575,2293.9,2292.6,0.91147761]
[1770133286782,13.56864575,2293.9,2292.7,0.91147761]
[1770133286982,13.74454024,2293.8,2292.4,1.15063477]
[1770133287179,13.74454024,2293.8,2292.5,0.9114376]
[1770133287379,12.65464575,2293.6,2292.3,0.001]
[1770133288002,12.65464575,2293.3,2292.3,0.001]
[1770133288189,13.56864575,2293.2,2292.3,0.001]
[1770133288871,13.74487295,2293.1,2292.3,0.001]
[1770133289202,13.74487295,2293.1,2292.1,0.001]
[1770133290112,12.65464575,2292.7,2291.1,2.65923769]
[1770133290403,0.11980265,2293.0,2291.1,0.001]
[1770133290404,12.65464575,2292.5,2291.1,0.001]
[1770133290602,12.65464575,2292.3,2291.1,0.001]
[1770133291006,12.65464575,2292.1,2291.1,0.001]
[1770133291205,13.56864575,2292.0,2291.1,0.001]
[1770133292038,12.6720484,2291.6,2289.9,1.14174316]
[1770133292194,12.65464575,2291.2,2289.9,0.70321122]
[1770133292534,12.65464575,2291.2,2289.6,7.24379252]
[1770133292535,12.65464575,2291.2,2289.6,3.96816337]
[1770133292690,12.65464575,2291.2,2289.7,0.9133544]
[1770133292887,1.09113128,2291.2,2290.1,0.01740265]
[1770133293083,1.09113128,2291.2,2290.1,1.10902942]
[1770133293285,1.09113128,2291.2,2290.2,0.54930689]
[1770133293517,2.00511021,2291.3,2290.2,0.56670954]
[1770133293804,14.65975596,2291.3,2290.2,0.54930689]
[1770133294009,14.65975596,2291.3,2290.0,1.09166703]
[1770133294301,14.65975596,2291.3,2290.1,1.09164339]
[1770133294504,14.65975596,2291.3,2290.1,1.09163252]
[1770133294876,14.65975596,2291.3,2289.9,4.36662154]
[1770133295204,14.65975596,2291.3,2289.8,1.10920106]
[1770133295505,12.65464575,2291.1,2289.9,0.54937974]
[1770133295707,12.65464575,2291.1,2289.7,1.09184285]
[1770133296212,14.65975596,2291.3,2289.7,1.09184285]
[1770133296706,14.65975596,2291.3,2289.7,1.1092455]
[1770133296879,14.65975596,2291.3,2289.9,1.09175073]
[1770133297079,14.65975596,2291.3,2290.1,0.001]
[1770133297299,12.65464575,2291.1,2290.1,0.001]
[1770133297705,1.09111021,2291.3,2290.1,0.001]
[1770133297897,0.915,2291.2,2290.1,0.001]
[1770133298783,13.56964575,2291.2,2290.1,0.001]
[1770133298988,13.74582465,2291.1,2290.1,0.001]
[1770133300150,12.65464575,2292.0,2290.2,0.01740265]
[1770133300434,14.67784642,2291.9,2290.1,0.001]
[1770133300641,0.01740265,2291.7,2290.1,0.001]
[1770133300934,1.09098843,2291.5,2290.3,1.09156005]
[1770133301089,1.09098843,2291.5,2290.3,1.1089627]
[1770133301998,1.09098843,2291.5,2290.3,1.09156005]
[1770133302619,1.09079802,2291.9,2290.3,12.51546628]
[1770133302919,13.74544377,2291.9,2290.6,1.09141709]
[1770133303097,13.74544377,2291.9,2290.5,1.09143597]
[1770133304893,1.09094082,2291.6,2290.1,0.001]
[1770133305122,13.56964575,2291.5,2290.1,0.001]
[1770133307026,13.74568179,2291.4,2290.1,1.09265538]
[1770133307327,13.74568179,2291.4,2290.1,0.001]
[1770133307509,13.76308444,2291.4,2290.1,0.001]
[1770133307709,12.6720484,2291.3,2290.1,0.001]
[1770133308228,12.65464575,2291.3,2290.1,0.001]
[1770133309007,12.65464575,2291.1,2290.1,0.001]
[1770133309210,0.915,2291.0,2290.1,0.001]
[1770133309928,13.56964575,2291.0,2290.1,0.001]
[1770133310521,13.56964575,2291.0,2289.9,0.001]
[1770133310522,12.01660089,2290.8,2289.9,0.001]
[1770133310709,0.915,2291.0,2288.9,1.093193]
[1770133310710,12.03400354,2290.4,2288.9,1.093193]
[1770133310901,12.01660089,2290.2,2288.9,0.54724003]
[1770133311103,13.10825627,2290.1,2288.9,0.54724003]
[1770133311306,13.10825627,2290.1,2288.0,0.01740265]
[1770133311307,0.01740265,2288.7,2287.7,1.14174316]
[1770133311533,0.915,2288.6,2287.7,1.09279271]
[1770133311753,12.03400354,2288.5,2286.6,12.02479672]
[1770133311911,0.01740265,2288.7,2286.3,1.54069614]
[1770133311912,0.4315726,2289.0,2287.7,1.09280031]
[1770133312242,1.44997203,2289.1,2287.7,1.09280031]
[1770133312243,2.36497203,2289.1,2287.7,1.09280031]
[1770133312599,13.46657292,2289.1,2287.7,1.09279565]
[1770133312821,13.46657292,2289.1,2287.8,0.54639982]
[1770133312822,12.93160089,2289.0,2287.8,0.54639982]
[1770133313021,1.09217999,2289.0,2287.7,1.09279476]
[1770133313829,1.09217999,2289.0,2287.7,13.4293678]
[1770133314133,1.09217999,2289.0,2287.6,1.09281502]
[1770133314341,12.35218619,2288.9,2287.6,1.092847]
[1770133314523,0.01740265,2288.8,2287.3,4.37183902]
[1770133314722,12.35218619,2288.9,2287.6,1.09283324]
[1770133314922,1.09217999,2289.0,2287.6,1.09283324]
[1770133315117,1.09217999,2289.0,2287.5,4.3713936]
[1770133315443,0.01740265,2288.8,2287.4,1.09294395]
[1770133315615,0.01740265,2288.7,2287.3,1.09296144]
[1770133315944,12.35218619,2288.1,2286.7,1.31665399]
[1770133316142,0.01740265,2287.9,2286.3,0.29409063]
[1770133316345,13.28458884,2288.0,2286.3,4.66793766]
[1770133316522,0.915,2288.0,2286.3,0.31149328]
[1770133316721,13.26718619,2288.0,2286.5,1.09334907]
[1770133316928,0.915,2288.0,2286.8,1.09321518]
[1770133317135,1.0927051,2287.9,2286.4,1.09342197]
[1770133317336,12.35218619,2287.6,2286.3,1.09345915]
[1770133317664,0.01740265,2287.5,2286.4,0.54673383]
[1770133317818,12.36958884,2287.6,2286.3,1.09346459]
[1770133318014,12.35218619,2287.6,2286.3,1.09346459]
[1770133318537,12.35218619,2287.4,2286.2,1.0934796]
[1770133318756,12.47198884,2287.7,2286.2,1.09349212]
[1770133319067,1.09308731,2287.1,2285.6,1.09380469]
[1770133319244,2.02648996,2287.1,2285.5,1.09383236]
[1770133319549,4.37212393,2287.3,2285.5,1.11123501]
[1770133319759,5.28812393,2287.3,2285.6,0.56780744]
[1770133320429,2.00899173,2287.3,2285.8,0.01740265]
[1770133321053,1.11020327,2287.8,2285.9,13.41283153]
[1770133321221,4.37103658,2287.8,2286.2,0.01740265]
[1770133321421,0.01740265,2287.5,2285.9,1.09366114]
[1770133321649,0.01740265,2287.3,2286.0,0.54683057]
[1770133322026,0.01740265,2287.1,2286.0,0.54683057]
[1770133322227,12.36958884,2287.0,2285.8,1.09369612]
[1770133322466,12.35218619,2287.0,2285.8,1.09369612]
[1770133322756,9.36557806,2287.9,2285.8,1.09369612]
[1770133322757,4.47343658,2287.8,2285.8,13.43026916]
[1770133322959,12.36958884,2287.6,2286.5,0.001]
[1770133323168,1.09289617,2287.5,2286.5,0.001]
[1770133323339,1.11029882,2287.5,2286.5,0.001]
[1770133323852,1.09289617,2287.5,2286.5,0.001]
[1770133324058,1.09288137,2287.6,2286.5,0.001]
[1770133325227,4.37125969,2287.7,2286.5,0.001]
[1770133325953,0.01740265,2287.5,2286.5,0.001]
[1770133326136,0.01740265,2287.4,2286.5,0.001]
[1770133326337,12.36958884,2287.6,2286.5,0.001]
[1770133326338,0.01740265,2287.6,2286.5,0.001]
[1770133326642,1.09280062,2287.7,2286.5,0.001]
[1770133326830,2.00873233,2287.9,2286.5,0.001]
[1770133327626,0.01740265,2287.8,2286.5,0.001]